fUST/lending_fUST_20240615
["ID","MTS","AMOUNT","RATE_DAILY","PERIOD"]
[329491393,1718391449978,-8250.0,0.0002408,35]
[329491394,1718391450018,-254.0,0.0002408,35]
[329491395,1718391450060,-150.5,0.0002409,35]
[329491396,1718391450110,-150.5,0.0002409,35]
[329491397,1718391450156,-259.0,0.0002409,35]
[329491398,1718391450196,-175.0,0.0002409,35]
[329491399,1718391450229,-317.0,0.0002409,35]
[329491400,1718391450271,-380.0,0.0002409,35]
[329491401,1718391450333,-8250.0,0.0002409,35]
[329491402,1718391450382,-254.0,0.0002409,35]
[329491403,1718391450441,-150.5,0.000241,35]
[329491404,1718391450505,-150.5,0.000241,35]
[329491405,1718391450551,-259.0,0.000241,35]
[329491406,1718391450588,-175.0,0.000241,35]
[329491407,1718391450628,-317.0,0.000241,35]
[329491408,1718391450666,-380.0,0.000241,35]
[329491409,1718391450700,-198.72,0.000241,35]
[329491410,1718391450740,-8250.0,0.000241,35]
[329491411,1718391450773,-254.0,0.000241,35]
[329491412,1718391450809,-218.0,0.0002417,35]
[329491413,1718391450842,-218.0,0.0002418,35]
[329491414,1718391450876,-218.0,0.0002419,35]
[329491415,1718391450928,-9217.31800669,0.00025,30]
[329491416,1718391450970,-1000.0,0.00025,30]
[329491417,1718391451015,-259.0,0.0002537,35]
[329491418,1718391451064,-317.0,0.0002537,35]
[329491419,1718391451134,-218.0,0.0002537,35]
[329491420,1718391451188,-175.0,0.0002537,35]
[329491421,1718391451224,-380.0,0.0002537,35]
[329491422,1718391451268,-8250.0,0.0002537,35]
[329491423,1718391451332,-254.0,0.0002537,35]
[329491424,1718391451375,-259.0,0.0002538,35]
[329491425,1718391451414,-259.0,0.0002538,35]
[329491426,1718391451474,-317.0,0.0002538,35]
[329491427,1718391451516,-218.0,0.0002538,35]
[329491428,1718391451559,-317.0,0.0002538,35]
[329491429,1718391451598,-175.0,0.0002538,35]
[329491430,1718391451633,-380.0,0.0002538,35]
[329491431,1718391451667,-218.0,0.0002538,35]
[329491432,1718391451713,-175.0,0.0002538,35]
[329491433,1718391451756,-380.0,0.0002538,35]
[329491434,1718391451818,-8250.0,0.0002538,35]
[329491435,1718391451853,-254.0,0.0002538,35]
[329491436,1718391451909,-8250.0,0.0002538,35]
[329491437,1718391451950,-254.0,0.0002538,35]
[329491438,1718391452157,-259.0,0.0002539,35]
[329491439,1718391452223,-259.0,0.0002539,35]
[329491440,1718391452316,-317.0,0.0002539,35]
[329491441,1718391452364,-175.0,0.0002539,35]
[329491442,1718391452409,-218.0,0.0002539,35]
[329491443,1718391452610,-317.0,0.0002539,35]
[329491444,1718391452663,-380.0,0.0002539,35]
[329491445,1718391452698,-218.0,0.0002539,35]
[329491446,1718391452741,-175.0,0.0002539,35]
[329491447,1718391452774,-380.0,0.0002539,35]
[329491448,1718391452814,-8250.0,0.0002539,35]
[329491449,1718391452882,-8250.0,0.0002539,35]
[329491450,1718391452935,-254.0,0.0002539,35]
[329491451,1718391452981,-254.0,0.0002539,35]
[329491452,1718391453085,-1896910.14131591,0.000255,60]
[329491453,1718391471549,-2000000.0,0.000255,60]
[329491454,1718391475282,-229335.91517369,0.000255,60]
[329491455,1718391475329,-220.044,0.00025731,30]
[329491456,1718391475363,-260.76,0.0002588,35]
[329491457,1718391475408,-182.6,0.0002588,35]
[329491458,1718391475458,-385.13,0.0002588,35]
[329491459,1718391475502,-321.8,0.0002588,35]
[329491460,1718391475558,-227.03,0.0002588,35]
[329491461,1718391475660,-259.0,0.0002589,35]
[329491462,1718391475699,-175.0,0.0002589,35]
[329491463,1718391475783,-380.0,0.0002589,35]
[329491464,1718391475849,-317.0,0.0002589,35]
[329491465,1718391475918,-218.0,0.0002589,35]
[329491466,1718391475957,-798159.65227057,0.00026,30]
[329491467,1718391476007,-1000.0,0.00026,30]
[329491468,1718391476104,-8257.97,0.0002658,35]
[329491469,1718391476142,-262.61,0.0002658,35]
[329491470,1718391476186,-8250.0,0.0002659,35]
[329491471,1718391476225,-254.0,0.0002659,35]
[329491472,1718391476265,-5036.33516328,0.0002661,30]
[329491473,1718391476312,-10006.63550579,0.00027,30]
[329491474,1718391476354,-600.24575388,0.00027,30]
[329491475,1718391476394,-1000.0,0.00027,30]
[329491476,1718391476457,-1000.0,0.00027,30]
[329491477,1718391476507,-500.0,0.00027397,30]
[329491478,1718391476570,-500.0,0.00027397,30]
[329491479,1718391476611,-500.0,0.00027397,30]
[329491480,1718391477199,-500.0,0.00027397,30]
[329491481,1718391477278,-500.0,0.00027397,30]
[329491482,1718391477370,-500.0,0.00027397,30]
[329491483,1718391477418,-500.0,0.00027397,30]
[329491484,1718391477486,-500.0,0.00027397,30]
[329491485,1718391477533,-500.0,0.00027397,30]
[329491486,1718391477588,-500.0,0.00027397,30]
[329491487,1718391477647,-500.0,0.00027397,30]
[329491488,1718391477698,-500.0,0.00027397,30]
[329491489,1718391477844,-500.0,0.00027397,30]
[329491490,1718391477887,-500.0,0.00027397,30]
[329491491,1718391477918,-500.0,0.00027397,30]
[329491492,1718391477954,-500.0,0.00027397,30]
[329491493,1718391478021,-500.0,0.00027397,30]
[329491494,1718391478057,-571.6880366,0.00027397,30]
[329491495,1718391478104,-6250.0,0.00027397,120]
[329491496,1718391539216,166.772923,0.00023562,120]
[329491497,1718391580979,151.01208097,0.00018875,30]
[329491498,1718391581050,151.01208097,0.00018497,120]
[329491501,1718391892066,562.66217878,0.00027397,120]
[329491502,1718391941577,151.01359122,0.0001872,30]
[329491503,1718391941678,151.01359122,0.00018345,120]
[329491504,1718391971989,5000.0,0.000141,2]
[329491510,1718392126577,-664.38626133,0.00015,2]
[329491511,1718392126638,-664.38626133,0.00015,2]
[329491512,1718392126689,-363.56540838,0.00015,2]
[329491513,1718392126734,-232.189693,0.00015232,2]
[329491514,1718392218216,1002.07,0.00025,60]
[329491642,1718392246496,-145.8941667,0.00015232,2]
[329491643,1718392246537,-272.8516895,0.00015375,2]
[329491644,1718392246570,-164.248549,0.00016164,2]
[329491645,1718392246586,-945.62097011,0.00016337,2]
[329491667,1718392247942,-746.71696093,0.00016337,2]
[329491669,1718392247962,-183.57544719,0.00016338,2]
[329491671,1718392247988,-267.03977808,0.00016436,7]
[329491672,1718392248000,-300.0,0.00016436,2]
[329491673,1718392248021,-156.97954424,0.00016437,2]
[329491674,1718392248032,-17014.89702863,0.00016437,2]
[329491675,1718392248047,-6028.74369559,0.00016437,2]
[329491676,1718392248058,-500.0,0.00016438,2]
[329491677,1718392248078,-525.08377058,0.00016438,2]
[329491678,1718392248097,-500.0,0.00016438,2]
[329491679,1718392248109,-500.0,0.00016438,2]
[329491680,1718392248124,-500.0,0.00016438,2]
[329491681,1718392248148,-500.0,0.00016438,2]
[329491682,1718392248172,-350.0,0.00016438,2]
[329491683,1718392248193,-500.0,0.00016438,4]
[329491684,1718392248204,-500.0,0.00016438,2]
[329491685,1718392248216,-500.0,0.00016438,2]
[329491686,1718392248229,-500.0,0.00016438,2]
[329491687,1718392248246,-500.0,0.00016438,2]
[329491688,1718392248256,-500.0,0.00016438,2]
[329491689,1718392248280,-500.0,0.00016438,2]
[329491690,1718392248290,-500.0,0.00016438,2]
[329491692,1718392248302,-240.39238126,0.00016438,2]
[329491695,1718392248358,-259.60761874,0.00016438,2]
[329491696,1718392248375,-520.73724395,0.00016438,2]
[329491697,1718392248406,-500.0,0.00016438,2]
[329491700,1718392248428,-500.0,0.00016438,2]
[329491701,1718392248444,-500.0,0.00016438,2]
[329491703,1718392248462,-259.67689488,0.00016438,2]
[329491705,1718392248479,-500.0,0.00016438,2]
[329491708,1718392248521,-250.0,0.00016438,2]
[329491710,1718392248544,-500.0,0.00016438,2]
[329491712,1718392248581,-500.0,0.00016438,2]
[329491714,1718392248595,-505.30895665,0.00016438,2]
[329491716,1718392248608,-310.41976195,0.00016438,2]
[329491718,1718392248632,-500.0,0.00016438,2]
[329491720,1718392248648,-500.0,0.00016438,2]
[329491722,1718392248668,-500.0,0.00016438,2]
[329491724,1718392248680,-500.0,0.00016438,2]
[329491727,1718392248694,-505.00040707,0.00016438,2]
[329491729,1718392248706,-500.0,0.00016438,2]
[329491731,1718392248717,-503.25826338,0.00016438,2]
[329491733,1718392248731,-500.0,0.00016438,2]
[329491735,1718392248749,-157.23325445,0.00016438,2]
[329491737,1718392248760,-47.42720014,0.00016438,2]
[329491739,1718392248784,-524.73991063,0.00016438,2]
[329491741,1718392248795,-500.0,0.00016438,2]
[329491743,1718392248810,-633.2101559,0.00016438,2]
[329491745,1718392248827,-500.0,0.00016438,2]
[329491747,1718392248840,-500.0,0.00016438,2]
[329491749,1718392248852,-502.14333954,0.00016438,2]
[329491751,1718392248867,-450.39338874,0.00016438,2]
[329491753,1718392248890,-49.60661126,0.00016438,2]
[329491756,1718392248909,-500.0,0.00016438,2]
[329491758,1718392248921,-500.0,0.00016438,2]
[329491762,1718392248952,-503.28858277,0.00016438,2]
[329491765,1718392248967,-500.0,0.00016438,2]
[329491767,1718392248997,-500.0,0.00016438,2]
[329491769,1718392249021,-500.0,0.00016438,2]
[329491771,1718392249032,-500.0,0.00016438,2]
[329491774,1718392249043,-262.82284149,0.00016438,2]
[329491776,1718392249055,-501.51732925,0.00016438,2]
[329491778,1718392249071,-505.81986372,0.00016438,2]
[329491780,1718392249104,-554.37274562,0.00016438,2]
[329491782,1718392249116,-500.0,0.00016438,2]
[329491785,1718392249137,-500.0,0.00016438,2]
[329491786,1718392249152,-511.65119082,0.00016438,2]
[329491788,1718392249168,-524.94371522,0.00016438,2]
[329491790,1718392249189,-501.42221471,0.00016438,2]
[329491792,1718392249201,-630.07957144,0.00016438,2]
[329491794,1718392249213,-500.0,0.00016438,2]
[329491795,1718392249233,-500.0,0.00016438,2]
[329491797,1718392249246,-500.0,0.00016438,2]
[329491799,1718392249259,-500.0,0.00016438,2]
[329491802,1718392249276,-200.74924829,0.00016438,2]
[329491804,1718392249308,-500.0,0.00016438,2]
[329491805,1718392249323,-500.0,0.00016438,2]
[329491808,1718392249354,-500.0,0.00016438,2]
[329491810,1718392249367,-500.0,0.00016438,2]
[329491812,1718392249378,-500.0,0.00016438,2]
[329491813,1718392249389,-505.51130471,0.00016438,2]
[329491816,1718392249403,-430.5487678,0.00016438,2]
[329491817,1718392249414,-500.0,0.00016438,2]
[329491820,1718392249461,-500.0,0.00016438,2]
[329491822,1718392249474,-500.0,0.00016438,2]
[329491824,1718392249485,-500.0,0.00016438,2]
[329491827,1718392249507,-500.0,0.00016438,2]
[329491829,1718392249518,-500.0,0.00016438,2]
[329491831,1718392249529,-500.0,0.00016438,2]
[329491832,1718392249542,-500.0,0.00016438,2]
[329491834,1718392249568,-599.36136266,0.00016438,2]
[329491836,1718392249591,-500.0,0.00016438,2]
[329491838,1718392249619,-500.0,0.00016438,2]
[329491840,1718392249635,-500.0,0.00016438,2]
[329491843,1718392249656,-500.0,0.00016438,2]
[329491845,1718392249675,-500.0,0.00016438,2]
[329491847,1718392249693,-500.0,0.00016438,2]
[329491849,1718392249710,-500.0,0.00016438,2]
[329491851,1718392249721,-500.0,0.00016438,2]
[329491853,1718392249732,-500.0,0.00016438,2]
[329491854,1718392249773,-534.353028,0.00016438,2]
[329491856,1718392249785,-500.0,0.00016438,2]
[329491858,1718392249803,-500.0,0.00016438,2]
[329491861,1718392249814,-502.59675767,0.00016438,2]
[329491862,1718392249825,-500.0,0.00016438,2]
[329491864,1718392249836,-500.0,0.00016438,2]
[329491866,1718392249872,-504.78950004,0.00016438,2]
[329491868,1718392249882,-500.0,0.00016438,2]
[329491871,1718392249900,-500.0,0.00016438,2]
[329491873,1718392249912,-500.0,0.00016438,2]
[329491874,1718392249923,-500.0,0.00016438,2]
[329491875,1718392249935,-500.0,0.00016438,2]
[329491876,1718392249952,-500.0,0.00016438,2]
[329491877,1718392249963,-562.13,0.00016438,2]
[329491878,1718392249974,-500.0,0.00016438,2]
[329491879,1718392249987,-500.0,0.00016438,2]
[329491880,1718392249998,-500.0,0.00016438,2]
[329491881,1718392250008,-261.12908118,0.00016438,2]
[329491882,1718392250020,-500.0,0.00016438,2]
[329491883,1718392250032,-500.0,0.00016438,2]
[329491884,1718392250053,-500.0,0.00016438,2]
[329491885,1718392250083,-500.0,0.00016438,2]
[329491886,1718392250101,-500.0,0.00016438,2]
[329491887,1718392250114,-500.0,0.00016438,2]
[329491888,1718392250136,-500.0,0.00016438,2]
[329491889,1718392250147,-500.0,0.00016438,2]
[329491890,1718392250159,-500.0,0.00016438,2]
[329491891,1718392250170,-638.47232009,0.00016438,2]
[329491892,1718392250197,-416.71565108,0.00016438,2]
[329491894,1718392250207,-501.58984958,0.00016438,2]
[329491895,1718392250222,-500.0,0.00016438,2]
[329491897,1718392250239,-500.0,0.00016438,2]
[329491900,1718392250251,-500.0,0.00016438,2]
[329491902,1718392250262,-500.0,0.00016438,2]
[329491904,1718392250278,-500.0,0.00016438,2]
[329491906,1718392250290,-363.06840139,0.00016438,2]
[329491909,1718392250338,-500.0,0.00016438,2]
[329491911,1718392250371,-500.0,0.00016438,2]
[329491912,1718392250389,-500.0,0.00016438,2]
[329491913,1718392250403,-500.0,0.00016438,2]
[329491914,1718392250436,-500.0,0.00016438,2]
[329491915,1718392250450,-500.0,0.00016438,2]
[329491916,1718392250481,-500.0,0.00016438,2]
[329491917,1718392250510,-500.0,0.00016438,2]
[329491918,1718392250522,-500.0,0.00016438,2]
[329491919,1718392250532,-500.0,0.00016438,2]
[329491920,1718392250542,-500.0,0.00016438,2]
[329491921,1718392250576,-500.0,0.00016438,2]
[329491922,1718392250617,-500.0,0.00016438,2]
[329491924,1718392250631,-500.0,0.00016438,2]
[329491926,1718392250642,-500.0,0.00016438,2]
[329491928,1718392250656,-263.21488475,0.00016438,2]
[329491930,1718392250667,-500.0,0.00016438,2]
[329491932,1718392250684,-500.0,0.00016438,2]
[329491934,1718392250695,-611.10775946,0.00016438,2]
[329491936,1718392250713,-638.74,0.00016438,2]
[329491938,1718392250728,-500.0,0.00016438,2]
[329491941,1718392250745,-500.0,0.00016438,2]
[329491943,1718392250761,-509.3783593,0.00016438,2]
[329491944,1718392250772,-500.0,0.00016438,2]
[329491946,1718392250783,-500.0,0.00016438,2]
[329491948,1718392250797,-500.0,0.00016438,2]
[329491950,1718392250807,-500.0,0.00016438,2]
[329491952,1718392250821,-500.0,0.00016438,2]
[329491955,1718392250835,-500.0,0.00016438,2]
[329491956,1718392250850,-500.0,0.00016438,2]
[329491957,1718392250877,-500.0,0.00016438,2]
[329491959,1718392250891,-500.0,0.00016438,2]
[329491961,1718392250903,-502.05011758,0.00016438,2]
[329491963,1718392250928,-500.0,0.00016438,2]
[329491965,1718392250941,-500.0,0.00016438,2]
[329491967,1718392250954,-457.51888194,0.00016438,2]
[329491969,1718392250971,-328.5703833,0.00016438,2]
[329491970,1718392251005,-500.0,0.00016438,2]
[329491972,1718392251030,-500.0,0.00016438,2]
[329491973,1718392251043,-500.0,0.00016438,2]
[329491975,1718392251081,-500.0,0.00016438,2]
[329491977,1718392251126,-500.0,0.00016438,2]
[329491978,1718392251148,-500.0,0.00016438,2]
[329491980,1718392251176,-500.0,0.00016438,2]
[329491983,1718392251187,-500.0,0.00016438,2]
[329491985,1718392251198,-500.0,0.00016438,2]
[329491987,1718392251209,-500.0,0.00016438,2]
[329491990,1718392251242,-500.0,0.00016438,2]
[329491992,1718392251256,-500.0,0.00016438,2]
[329491995,1718392251274,-500.0,0.00016438,2]
[329491998,1718392251316,-500.0,0.00016438,2]
[329492000,1718392251331,-500.0,0.00016438,2]
[329492003,1718392251370,-500.0,0.00016438,2]
[329492006,1718392251385,-500.0,0.00016438,2]
[329492009,1718392251414,-500.0,0.00016438,2]
[329492010,1718392251437,-22594.49,0.00016438,2]
[329492011,1718392251450,-419.072978,0.00016438,2]
[329492012,1718392251463,-500.0,0.00016438,2]
[329492013,1718392251480,-501.31958784,0.00016438,2]
[329492014,1718392251492,-500.0,0.00016438,2]
[329492015,1718392251505,-708.25,0.00016438,2]
[329492016,1718392251523,-555.6738893,0.00016438,2]
[329492017,1718392251540,-500.0,0.00016438,2]
[329492018,1718392251557,-745.65,0.00016438,2]
[329492019,1718392251568,-500.0,0.00016438,2]
[329492020,1718392251579,-500.0,0.00016438,2]
[329492021,1718392251595,-432.61683931,0.00016438,2]
[329492024,1718392251628,-500.0,0.00016438,2]
[329492026,1718392251638,-1603.57,0.00016438,2]
[329492029,1718392251665,-500.0,0.00016438,2]
[329492032,1718392251694,-500.0,0.00016438,2]
[329492036,1718392251736,-2204.66,0.00016438,2]
[329492038,1718392251789,-500.0,0.00016438,2]
[329492039,1718392251802,-2985.47,0.00016438,2]
[329492041,1718392251821,-617.85,0.00016438,2]
[329492044,1718392251854,-500.0,0.00016438,2]
[329492046,1718392251873,-543.46180541,0.00016438,2]
[329492048,1718392251889,-500.0,0.00016438,2]
[329492050,1718392251902,-902.35,0.00016438,2]
[329492052,1718392251915,-12400.04,0.00016438,2]
[329492054,1718392251928,-2783.4,0.00016438,2]
[329492055,1718392251966,-500.0,0.00016438,2]
[329492057,1718392251982,-500.0,0.00016438,2]
[329492065,1718392252100,-500.0,0.00016438,2]
[329492067,1718392252111,-500.0,0.00016438,2]
[329492069,1718392252123,-500.0,0.00016438,2]
[329492071,1718392252138,-500.0,0.00016438,2]
[329492073,1718392252164,-500.0,0.00016438,2]
[329492074,1718392252183,-532.16962982,0.00016438,2]
[329492077,1718392252217,-500.0,0.00016438,2]
[329492078,1718392252252,-500.0,0.00016438,2]
[329492080,1718392252277,-500.0,0.00016438,2]
[329492082,1718392252290,-500.0,0.00016438,2]
[329492084,1718392252309,-500.0,0.00016438,2]
[329492086,1718392252332,-500.0,0.00016438,2]
[329492087,1718392252358,-500.0,0.00016438,2]
[329492089,1718392252377,-500.0,0.00016438,2]
[329492091,1718392252409,-500.0,0.00016438,2]
[329492093,1718392252429,-500.0,0.00016438,2]
[329492095,1718392252445,-500.0,0.00016438,2]
[329492097,1718392252458,-500.0,0.00016438,2]
[329492099,1718392252470,-155.08612808,0.00016438,2]
[329492100,1718392252481,-802.03,0.00016438,2]
[329492102,1718392252494,-513.96,0.00016438,2]
[329492104,1718392252505,-513.96,0.00016438,2]
[329492107,1718392252523,-513.96,0.00016438,2]
[329492108,1718392252535,-513.96,0.00016438,2]
[329492111,1718392252551,-513.96,0.00016438,2]
[329492113,1718392252570,-502.77358706,0.00016438,2]
[329492114,1718392252581,-506.37829844,0.00016438,2]
[329492116,1718392252594,-500.0,0.00016438,2]
[329492118,1718392252607,-500.0,0.00016438,2]
[329492121,1718392252622,-501.41618586,0.00016438,2]
[329492123,1718392252638,-521.97881494,0.00016438,2]
[329492125,1718392252657,-500.0,0.00016438,2]
[329492127,1718392252681,-500.0,0.00016438,2]
[329492129,1718392252694,-4789.17,0.00016438,2]
[329492131,1718392252712,-5147.08,0.00016438,2]
[329492134,1718392252730,-500.0,0.00016438,2]
[329492136,1718392252756,-500.0,0.00016438,2]
[329492138,1718392252775,-500.0,0.00016438,2]
[329492139,1718392252785,-500.0,0.00016438,2]
[329492141,1718392252796,-500.0,0.00016438,2]
[329492143,1718392252807,-500.0,0.00016438,2]
[329492145,1718392252826,-500.0,0.00016438,2]
[329492146,1718392252839,-1038.38,0.00016438,2]
[329492149,1718392252858,-500.0,0.00016438,2]
[329492151,1718392252885,-503.78967618,0.00016438,2]
[329492153,1718392252907,-500.0,0.00016438,2]
[329492155,1718392252929,-500.0,0.00016438,2]
[329492157,1718392252953,-616.58,0.00016438,2]
[329492159,1718392252968,-500.0,0.00016438,2]
[329492161,1718392252982,-500.0,0.00016438,2]
[329492162,1718392253002,-511.85886639,0.00016438,2]
[329492164,1718392253014,-500.0,0.00016438,2]
[329492166,1718392253040,-504.04937426,0.00016438,2]
[329492168,1718392253065,-500.0,0.00016438,2]
[329492170,1718392253080,-500.0,0.00016438,2]
[329492172,1718392253116,-544.08327368,0.00016438,2]
[329492174,1718392253134,-500.0,0.00016438,2]
[329492176,1718392253170,-1346.86,0.00016438,2]
[329492178,1718392253230,-500.0,0.00016438,2]
[329492180,1718392253242,-500.0,0.00016438,2]
[329492182,1718392253260,-501.02092364,0.00016438,2]
[329492184,1718392253276,-500.0,0.00016438,2]
[329492186,1718392253295,-500.0,0.00016438,2]
[329492188,1718392253312,-545.62483626,0.00016438,2]
[329492190,1718392253327,-500.0,0.00016438,2]
[329492192,1718392253348,-500.0,0.00016438,2]
[329492194,1718392253373,-567.38554957,0.00016438,2]
[329492196,1718392253399,-500.0,0.00016438,2]
[329492197,1718392253425,-1201.24,0.00016438,2]
[329492199,1718392253443,-5807.23,0.00016438,2]
[329492201,1718392253460,-500.0,0.00016438,2]
[329492204,1718392253487,-500.0,0.00016438,2]
[329492206,1718392253504,-500.0,0.00016438,2]
[329492209,1718392253523,-500.0,0.00016438,2]
[329492211,1718392253538,-500.0,0.00016438,2]
[329492213,1718392253556,-500.0,0.00016438,2]
[329492215,1718392253572,-500.0,0.00016438,2]
[329492217,1718392253584,-500.0,0.00016438,2]
[329492219,1718392253598,-500.0,0.00016438,2]
[329492221,1718392253612,-500.0,0.00016438,2]
[329492223,1718392253628,-500.0,0.00016438,2]
[329492225,1718392253645,-500.0,0.00016438,2]
[329492227,1718392253657,-500.0,0.00016438,2]
[329492229,1718392253668,-500.0,0.00016438,2]
[329492231,1718392253680,-500.0,0.00016711,2]
[329492233,1718392253714,-500.0,0.00016711,2]
[329492234,1718392253740,-500.0,0.00016711,2]
[329492236,1718392253751,-513.96,0.00016711,2]
[329492239,1718392253762,-513.96,0.00016711,2]
[329492241,1718392253779,-513.96,0.00016711,2]
[329492243,1718392253795,-500.0,0.00016711,2]
[329492245,1718392253810,-540.1,0.00016711,2]
[329492247,1718392253822,-500.0,0.00016712,2]
[329492249,1718392253835,-579.04683333,0.00016712,2]
[329492251,1718392253848,-500.0,0.00016712,2]
[329492253,1718392253859,-500.0,0.00016712,4]
[329492255,1718392253875,-484.95344661,0.00016712,2]
[329492257,1718392253886,-500.0,0.00016712,2]
[329492259,1718392253899,-500.0,0.00016712,2]
[329492260,1718392253911,-500.0,0.00016712,2]
[329492263,1718392253923,-617.03367607,0.00016712,2]
[329492265,1718392253933,-500.0,0.00016712,2]
[329492266,1718392253944,-500.0,0.00016712,2]
[329492268,1718392253956,-500.0,0.00016712,2]
[329492270,1718392253967,-250.0,0.00016712,2]
[329492271,1718392254003,-500.0,0.00016712,2]
[329492273,1718392254019,-500.0,0.00016712,2]
[329492275,1718392254035,-536.97547353,0.00016712,2]
[329492277,1718392254048,-500.0,0.00016712,2]
[329492279,1718392254069,-500.0,0.00016712,2]
[329492280,1718392254081,-523.02,0.00016712,2]
[329492281,1718392254109,-500.0,0.00016712,2]
[329492283,1718392254131,-500.0,0.00016712,2]
[329492286,1718392254150,-500.0,0.00016712,2]
[329492287,1718392254172,-500.0,0.00016712,2]
[329492289,1718392254200,-500.0,0.00016712,2]
[329492291,1718392254232,-500.0,0.00016712,2]
[329492293,1718392254272,-500.0,0.00016712,2]
[329492295,1718392254329,-500.0,0.00016712,2]
[329492297,1718392254344,-439.65452609,0.00016712,2]
[329492299,1718392254357,-239.40728344,0.00016712,2]
[329492301,1718392254371,-300.98,0.00016712,2]
[329492303,1718392254400,-500.0,0.00016712,2]
[329492305,1718392254411,-503.53612767,0.00016712,2]
[329492307,1718392254423,-500.0,0.00016712,2]
[329492309,1718392254435,-500.0,0.00016712,2]
[329492311,1718392254449,-500.0,0.00016712,2]
[329492312,1718392254468,-500.0,0.00016712,2]
[329492314,1718392254500,-500.0,0.00016712,2]
[329492317,1718392254522,-500.0,0.00016712,2]
[329492319,1718392254534,-500.0,0.00016712,2]
[329492320,1718392254550,-500.0,0.00016712,2]
[329492322,1718392254561,-500.0,0.00016712,2]
[329492324,1718392254571,-513.40978454,0.00016712,2]
[329492326,1718392254583,-264.85,0.00016712,2]
[329492328,1718392254595,-500.0,0.00016712,2]
[329492330,1718392254608,-396.28681019,0.00016712,2]
[329492332,1718392254622,-500.0,0.00016712,2]
[329492335,1718392254672,-500.0,0.00016712,2]
[329492337,1718392254688,-500.0,0.00016712,2]
[329492339,1718392254701,-562.13,0.00016712,2]
[329492341,1718392254712,-503.69079928,0.00016712,2]
[329492343,1718392254724,-500.0,0.00016712,2]
[329492345,1718392254751,-500.0,0.00016712,2]
[329492347,1718392254765,-500.0,0.00016712,2]
[329492349,1718392254777,-500.0,0.00016712,2]
[329492351,1718392254792,-500.0,0.00016712,2]
[329492354,1718392254827,-500.0,0.00016712,2]
[329492356,1718392254840,-500.0,0.00016712,2]
[329492358,1718392254862,-500.0,0.00016712,2]
[329492360,1718392254878,-500.0,0.00016712,2]
[329492361,1718392254891,-500.0,0.00016712,2]
[329492363,1718392254903,-500.0,0.00016712,2]
[329492365,1718392254932,-500.0,0.00016712,2]
[329492367,1718392254951,-500.0,0.00016712,2]
[329492369,1718392254965,-176.44907158,0.00016712,2]
[329492371,1718392254977,-500.0,0.00016712,2]
[329492373,1718392254989,-500.0,0.00016712,2]
[329492375,1718392254999,-500.0,0.00016712,2]
[329492377,1718392255016,-500.0,0.00016712,2]
[329492380,1718392255036,-500.0,0.00016712,2]
[329492382,1718392255060,-500.0,0.00016712,2]